bitfinex-derivatives/quotes_SOLF0:USTF0_20250606
["timestamp","ask_amount","ask_price","bid_price","bid_amount"]
[1749232119097,11.45863904,149.81,149.79,10.04902824]
[1749232119396,7.29227928,149.81,149.79,10.04902824]
[1749232119596,4.78974291,149.8,149.79,10.04902824]
[1749232119803,4.78971891,149.8,149.79,10.04902824]
[1749232120005,11.45951891,149.8,149.79,10.04902824]
[1749232120195,11.45937115,149.8,149.79,10.04902824]
[1749232120397,7.29227928,149.81,149.79,10.04902824]
[1749232120801,4.79921957,149.8,149.79,10.04902824]
[1749232121298,4.78210697,149.8,149.79,10.04902824]
[1749232121499,4.7820032,149.8,149.79,10.04902824]
[1749232121703,6.6698,149.8,149.79,10.04902824]
[1749232121903,11.45200525,149.8,149.79,10.04902824]
[1749232123005,11.45532516,149.8,149.79,10.04902824]
[1749232123202,11.45540978,149.8,149.79,10.04902824]
[1749232123410,11.45540978,149.8,149.79,9.90990468]
[1749232123411,45.31540978,149.8,149.79,9.90990468]
[1749232123601,45.93788906,149.8,149.71,33.86]
[1749232123806,7.29227928,149.76,149.71,6.6736]
[1749232124014,4.78560978,149.75,149.7,6.17895128]
[1749232124203,4.78560978,149.75,149.7,12.85295128]
[1749232124204,6.6722,149.75,149.7,12.85295128]
[1749232124404,4.77828298,149.74,149.7,12.85295128]
[1749232124702,0.04306685,149.73,149.71,0.04288801]
[1749232125610,0.04306685,149.73,149.71,10.04288801]
[1749232128906,47.84557928,149.72,149.71,10.04288801]
[1749232129306,52.60199248,149.72,149.71,10.04288801]
[1749232129501,52.60199248,149.72,149.64,10.58525128]
[1749232129502,6.675,149.69,149.64,11.0829]
[1749232129705,13.96727928,149.69,149.64,11.0829]
[1749232130308,6.6752,149.68,149.64,4.4063]
[1749232130506,0.0503747,149.67,149.65,0.04547423]
[1749232131316,0.0503747,149.67,149.65,10.04547423]
[1749232131506,6.7258747,149.67,149.65,10.04547423]
[1749232131904,14.01815398,149.67,149.65,10.04547423]
[1749232132206,6.6759,149.66,149.65,10.04547423]
[1749232133612,7.34265398,149.67,149.65,10.04547423]
[1749232133613,14.01815398,149.67,149.65,10.04547423]
[1749232133806,7.34265398,149.67,149.65,10.04547423]
[1749232134505,6.6759,149.66,149.65,10.04547423]
[1749232136307,6.6773,149.63,149.6,2.2518]
[1749232136613,13.96957928,149.63,149.58,8.7931]
[1749232137009,7.29227928,149.63,149.59,6.6791]
[1749232137409,0.04778103,149.62,149.6,0.05069241]
[1749232138111,0.04778103,149.62,149.6,10.05069241]
[1749232140301,0.04778103,149.62,149.6,17.34297169]
[1749232140507,33.88,149.64,149.6,17.34297169]
[1749232141010,33.88,149.64,149.61,6.6779]
[1749232141406,6.6777,149.63,149.6,10.05069241]
[1749232141615,33.93038228,149.64,149.6,10.05069241]
[1749232142008,6.6777,149.63,149.6,10.05069241]
[1749232142410,33.93038228,149.64,149.6,10.05069241]
[1749232143115,7.29227928,149.63,149.6,10.05069241]
[1749232143319,7.29227928,149.61,149.6,10.05069241]
[1749232143711,13.97047928,149.61,149.6,10.05069241]
[1749232145617,7.29227928,149.61,149.6,10.05069241]
[1749232146620,13.97047928,149.61,149.6,10.05069241]
[1749232147016,7.29227928,149.61,149.53,2.2073]
[1749232147223,6.5481,149.65,149.52,4.2853]
[1749232147224,7.29227928,149.54,149.52,4.2853]
[1749232148121,7.33788942,149.54,149.52,0.04902588]
[1749232148811,0.04561014,149.54,149.52,10.04902588]
[1749232152412,0.04561014,149.54,149.53,6.6817]
[1749232153021,33.9,149.6,149.53,13.97227928]
[1749232153226,384.76,149.63,149.55,7.29227928]
[1749232153227,7.29227928,149.62,149.55,7.29227928]
[1749232153412,7.29227928,149.62,149.55,13.97287928]
[1749232153618,7.29227928,149.6,149.55,6.6806]
[1749232153818,6.7265339,149.59,149.56,0.0486649]
[1749232155518,6.6795,149.58,149.56,0.0486649]
[1749232155924,0.0473339,149.59,149.56,0.0486649]
[1749232156318,6.6799,149.57,149.56,0.0486649]
[1749232159830,6.6799,149.57,149.56,10.0486649]
[1749232160426,19.13800723,149.58,149.56,10.0486649]
[1749232160927,6.6799,149.57,149.56,10.0486649]
[1749232162129,19.13800723,149.58,149.56,10.0486649]
[1749232162332,12.45830723,149.58,149.56,10.0486649]
[1749232162723,6.6799,149.57,149.56,10.0486649]
[1749232163728,19.13800723,149.58,149.56,10.0486649]
[1749232164125,12.45830723,149.58,149.56,10.0486649]
[1749232164324,6.6799,149.57,149.56,10.0486649]
[1749232164526,12.45830723,149.58,149.56,10.0486649]
[1749232164730,17.04561845,149.58,149.56,10.0486649]
[1749232164929,6.6799,149.57,149.56,10.0486649]
[1749232165833,6.6799,149.57,149.56,0.0085649]
[1749232166032,6.6818,149.53,149.45,2.1456]
[1749232166233,12.45830723,149.52,149.45,3.30959639]
[1749232166636,12.45830723,149.52,149.49,6.6832]
[1749232166827,53.03970723,149.54,149.45,2.1456]
[1749232167027,0.05089003,149.52,149.51,6.6825]
[1749232167734,0.05089003,149.52,149.5,6.6828]
[1749232167931,0.05089003,149.52,149.49,0.05014182]
[1749232168329,0.05089003,149.52,149.49,10.05014182]
[1749232168838,12.50919726,149.52,149.49,10.05014182]
[1749232169736,6.683,149.5,149.49,10.05014182]
[1749232172239,0.05089003,149.52,149.49,10.05014182]
[1749232172640,6.6829,149.51,149.49,10.05014182]
[1749232174737,0.05089003,149.52,149.49,10.05014182]
[1749232175134,0.05089003,149.52,149.49,16.73334182]
[1749232175745,6.73299003,149.52,149.49,16.73334182]
[1749232176043,0.05089003,149.52,149.5,6.6828]
[1749232176240,6.73299003,149.52,149.49,10.05014182]
[1749232176445,6.73299003,149.52,149.49,16.73334182]
[1749232176646,0.05089003,149.52,149.49,10.05014182]
[1749232176845,6.6805,149.56,149.53,6.6814]
[1749232177042,6.6805,149.56,149.53,13.95577481]
[1749232177742,0.04616612,149.56,149.53,7.31653463]
[1749232178750,0.04616612,149.56,149.53,13.99803463]
[1749232179449,6.72666612,149.56,149.53,13.99803463]
[1749232183953,0.04616612,149.56,149.54,6.6811]
[1749232184456,0.04616612,149.56,149.53,7.31653463]
[1749232184947,0.04616612,149.56,149.54,6.6811]
[1749232185146,0.04616612,149.56,149.53,7.31653463]
[1749232185553,0.04616612,149.56,149.55,6.6808]
[1749232186141,6.6785,149.6,149.57,6.6795]
[1749232186851,33.9,149.64,149.59,7.27437481]
[1749232187049,168.03660025,149.66,149.61,7.27437481]
[1749232187247,0.0473338,149.65,149.62,0.0426087]
[1749232187751,0.0473338,149.65,149.63,7.27437481]
[1749232187953,0.0473338,149.65,149.64,6.6767]
[1749232188454,33.88,149.69,149.63,7.27437481]
[1749232188755,33.88,149.72,149.66,7.27437481]
[1749232188949,4.54302001,149.71,149.66,7.27437481]
[1749232189152,6.675,149.68,149.66,13.95027481]
[1749232189345,6.675,149.68,149.66,7.32015129]
[1749232189857,11.22025331,149.69,149.66,7.32015129]
[1749232190150,4.54556257,149.71,149.66,7.32015129]
[1749232190358,4.54594684,149.7,149.66,7.32015129]
[1749232190555,11.22074684,149.69,149.66,13.99595129]
[1749232190751,33.88,149.72,149.66,7.32015129]
[1749232191153,4.54669883,149.71,149.66,7.32015129]
[1749232191454,4.54669883,149.7,149.66,7.32015129]
[1749232191643,6.6744,149.7,149.67,6.6751]
[1749232191849,11.29408712,149.7,149.67,6.6751]
[1749232192154,33.88,149.72,149.66,7.32015129]
[1749232192342,4.61956172,149.71,149.66,7.32015129]
[1749232192544,33.88,149.72,149.66,7.32015129]
[1749232192749,6.6743,149.7,149.66,7.32015129]
[1749232193756,6.6743,149.7,149.67,6.6753]
[1749232194051,6.6743,149.7,149.66,7.32015129]
[1749232194256,6.6743,149.7,149.66,13.99565129]
[1749232194659,6.6743,149.7,149.66,7.32015129]
[1749232194851,6.6743,149.7,149.66,13.99575129]
[1749232195057,41.15437481,149.72,149.66,0.04577648]
[1749232195259,7.27437481,149.7,149.66,0.04577648]
[1749232195453,6.6748,149.69,149.66,0.04577648]
[1749232196055,6.6746,149.69,149.66,0.04577648]
[1749232198153,6.6742,149.7,149.66,6.72157648]
[1749232198556,7.27437481,149.71,149.66,0.04577648]
[1749232199561,6.6748,149.69,149.66,0.04577648]
[1749232200351,6.6742,149.7,149.66,13.99585129]
[1749232200551,33.88,149.72,149.66,7.32015129]
[1749232201161,33.88,149.72,149.66,0.04577648]
[1749232201162,7.27437481,149.69,149.66,0.04577648]
[1749232201356,6.6743,149.7,149.66,6.72157648]
[1749232201557,7.27437481,149.71,149.66,0.04577648]
[1749232202055,6.6749,149.69,149.66,10.04577648]
[1749232202365,7.27437481,149.71,149.66,10.04577648]
[1749232202760,6.6746,149.69,149.66,10.04577648]
[1749232203856,7.27437481,149.71,149.66,10.04577648]
[1749232203857,6.675,149.68,149.66,10.04577648]
[1749232204761,7.27437481,149.71,149.66,10.04577648]
[1749232205363,6.6746,149.69,149.66,10.04577648]
[1749232206371,2.1229,149.76,149.67,7.27437481]
[1749232206665,41.13437481,149.75,149.7,0.04996977]
[1749232207669,6.6732,149.72,149.7,0.04996977]
[1749232209168,41.13437481,149.75,149.7,0.04996977]
[1749232209365,6.6736,149.71,149.7,0.04996977]
[1749232213463,13.94797481,149.71,149.7,0.04996977]
[1749232213664,47.78797481,149.71,149.7,0.04996977]
[1749232213867,7.27437481,149.69,149.64,7.27437481]
[1749232214474,6.6756,149.67,149.64,7.27437481]
[1749232214970,6.7254311,149.67,149.64,13.99719044]
[1749232215374,0.0498311,149.67,149.66,6.6758]
[1749232215568,0.0498311,149.67,149.66,13.95017481]
[1749232216777,0.0498311,149.67,149.66,7.27437481]
[1749232217274,0.0498311,149.67,149.66,13.95027481]
[1749232217477,33.84,149.74,149.66,48.38874962]
[1749232217770,6.6729,149.73,149.7,7.27437481]
[1749232218170,6.6729,149.73,149.7,13.94817481]
[1749232218367,6.6729,149.73,149.7,13.99140829]
[1749232218576,33.84,149.74,149.7,7.31760829]
[1749232219378,6.672,149.75,149.7,7.31760829]
[1749232219673,6.6723,149.74,149.7,7.31760829]
[1749232220265,6.672,149.75,149.72,7.27437481]
[1749232220867,6.6723,149.74,149.72,7.27437481]
[1749232221069,4.65107176,149.76,149.72,7.31840981]
[1749232221775,4.68688634,149.76,149.72,7.31840981]
[1749232221975,4.68688406,149.76,149.72,7.31840981]
[1749232222179,4.68688406,149.75,149.74,7.27437481]
[1749232222378,4.69812332,149.76,149.74,7.27437481]
[1749232222578,33.84,149.8,149.74,7.27437481]
[1749232222579,6.6709,149.78,149.74,13.99373594]
[1749232222775,33.84,149.8,149.74,7.32153594]
[1749232222776,4.69800091,149.77,149.74,7.32153594]
[1749232222977,4.69800091,149.76,149.74,7.32153594]
[1749232223178,6.6713,149.77,149.74,7.32153594]
[1749232223485,6.6713,149.77,149.74,0.04716113]
[1749232223675,11.37196611,149.77,149.74,0.04716113]
[1749232223876,6.6714,149.76,149.74,7.32153594]
[1749232224679,6.6711,149.77,149.74,13.99363594]
[1749232224879,33.84,149.8,149.74,7.32153594]
[1749232225096,6.6712,149.77,149.74,7.32153594]
[1749232225477,4.71477153,149.76,149.74,7.32153594]
[1749232225681,4.7147587,149.75,149.74,7.32153594]
[1749232225987,4.71475612,149.75,149.74,7.32153594]
[1749232226187,4.73060393,149.75,149.74,7.32153594]
[1749232226383,4.73075088,149.75,149.74,7.32153594]
[1749232226582,4.74865601,149.75,149.74,7.32153594]
[1749232227191,4.74667319,149.75,149.74,7.32153594]
[1749232227384,4.74667319,149.75,149.74,0.04716113]
[1749232227690,4.74662762,149.75,149.74,0.04716113]
[1749232227884,11.41832553,149.75,149.74,0.04716113]
[1749232228080,4.74684913,149.75,149.74,0.04716113]
[1749232229284,4.74770125,149.75,149.74,13.99373594]
[1749232229487,41.11437481,149.8,149.74,13.99373594]
[1749232229791,4.7476994,149.79,149.74,13.99373594]
[1749232229990,4.7472913,149.78,149.74,13.99373594]
[1749232230192,4.7472913,149.77,149.74,13.99373594]
[1749232230396,4.7472913,149.76,149.74,7.32153594]
[1749232230692,4.7472913,149.75,149.74,7.32153594]
[1749232230891,4.74545185,149.75,149.74,13.99383594]
[1749232231394,4.75041626,149.75,149.74,13.99383594]
[1749232231598,6.6709,149.77,149.74,7.32153594]
[1749232231795,4.75005581,149.76,149.74,7.32153594]
[1749232232094,4.75005581,149.75,149.74,7.32153594]
[1749232232295,4.75005581,149.75,149.74,13.99383594]
[1749232232897,4.75507192,149.75,149.74,13.99383594]
[1749232233104,6.6709,149.77,149.74,13.99383594]
[1749232233301,41.11437481,149.8,149.74,13.99383594]
[1749232233302,6.6715,149.76,149.74,7.32153594]
[1749232233705,4.75550226,149.75,149.74,7.32153594]
[1749232234100,11.42730226,149.75,149.74,0.04716113]
[1749232234300,4.75550226,149.75,149.74,0.04716113]
[1749232234505,41.11437481,149.8,149.74,0.04716113]
[1749232234702,4.75486369,149.79,149.74,0.04716113]
[1749232234906,4.75486369,149.78,149.74,0.04716113]
[1749232235106,4.75554695,149.77,149.74,0.04716113]
[1749232235307,41.11437481,149.8,149.75,6.6718]
[1749232235501,4.75577814,149.79,149.74,0.04716113]
[1749232235696,4.75577814,149.78,149.74,0.04716113]
[1749232235900,41.11437481,149.8,149.74,0.04716113]
[1749232235901,4.75577814,149.77,149.74,0.04716113]
[1749232236204,41.11437481,149.8,149.74,0.04716113]
[1749232236398,6.6711,149.77,149.74,0.04716113]
[1749232236604,6.6711,149.77,149.74,6.71936113]
[1749232236805,4.75641202,149.76,149.74,6.71936113]
[1749232237004,6.6711,149.77,149.74,6.71936113]
[1749232239610,4.7512732,149.79,149.74,0.04716113]
[1749232239813,41.11437481,149.8,149.74,0.04716113]
[1749232239814,4.75044877,149.78,149.74,0.04716113]
[1749232240004,4.75044877,149.79,149.74,0.04716113]
[1749232240205,4.75044877,149.79,149.75,6.6716]
[1749232240206,6.6705,149.79,149.75,6.6716]
[1749232240610,11.4209595,149.79,149.75,6.6716]
[1749232240807,4.7504595,149.79,149.74,0.04716113]
[1749232241111,33.84,149.8,149.77,7.27437481]
[1749232241412,41.11437481,149.8,149.77,0.04713783]
[1749232241601,7.27437481,149.78,149.77,0.04713783]
[1749232241806,7.27437481,149.78,149.71,33.94]
[1749232242002,6.6717,149.76,149.72,6.6729]
[1749232242208,7.27437481,149.78,149.72,6.6729]
[1749232242406,7.27437481,149.78,149.71,33.94]
[1749232242607,4.75418993,149.77,149.72,6.673]
[1749232242802,7.27437481,149.78,149.72,6.673]
[1749232242803,4.79662832,149.76,149.73,0.04941476]
[1749232243009,0.04243839,149.76,149.73,0.04941476]
[1749232243314,4.75418993,149.75,149.73,0.04941476]
[1749232243618,0.04243839,149.76,149.73,0.04941476]
[1749232244015,4.75963412,149.75,149.73,0.04941476]
[1749232244614,0.04243839,149.76,149.73,6.72211476]
[1749232244816,4.80207251,149.76,149.73,6.72211476]
[1749232245018,0.04243839,149.76,149.73,6.72211476]
[1749232245323,4.80527438,149.76,149.73,0.04941476]
[1749232245621,0.04243839,149.76,149.73,0.04941476]
[1749232245915,4.80527438,149.76,149.73,0.04941476]
[1749232246111,0.04243839,149.76,149.73,6.72181476]
[1749232246317,4.80527438,149.76,149.73,6.72181476]
[1749232246512,0.04243839,149.76,149.73,6.72181476]
[1749232246719,11.47677438,149.76,149.73,6.72181476]
[1749232246917,6.71393839,149.76,149.73,6.72181476]
[1749232247117,11.46207553,149.76,149.73,16.72181476]
[1749232247315,6.71393839,149.76,149.73,16.72181476]
[1749232247517,11.46207553,149.76,149.73,16.72181476]
[1749232247722,6.71393839,149.76,149.73,16.72181476]
[1749232247918,11.46207553,149.76,149.73,16.72181476]
[1749232248218,6.71393839,149.76,149.73,16.72181476]
[1749232248515,4.78357412,149.76,149.73,10.04941476]
[1749232248720,4.74113573,149.75,149.73,10.04941476]
[1749232249219,11.41343573,149.75,149.73,10.04941476]
[1749232249419,11.4220315,149.75,149.73,10.04941476]
[1749232249818,6.6723,149.74,149.73,10.04941476]
[1749232250321,11.42262431,149.75,149.73,10.04941476]
[1749232250721,6.6721,149.75,149.73,10.04941476]
[1749232251218,6.6723,149.74,149.73,10.04941476]
[1749232251723,11.42279999,149.74,149.73,10.04941476]
[1749232252709,11.4218852,149.74,149.73,10.04941476]
[1749232253114,11.42207371,149.74,149.73,10.04941476]
[1749232253422,11.42142659,149.74,149.73,10.04941476]
[1749232253923,11.42197314,149.74,149.73,10.04941476]
[1749232254922,11.42013545,149.74,149.73,10.04941476]
[1749232255216,11.4201854,149.74,149.73,10.04941476]
[1749232255422,11.42017683,149.74,149.73,10.04941476]
[1749232255924,6.6723,149.74,149.73,10.04941476]
[1749232256114,11.4103773,149.74,149.73,10.04941476]
[1749232256318,11.41046159,149.74,149.73,10.04941476]
[1749232256627,6.6723,149.74,149.73,10.04941476]
[1749232257125,11.41035908,149.74,149.73,10.04941476]
[1749232258023,11.40999586,149.74,149.73,10.04941476]
[1749232258622,11.41007645,149.74,149.73,10.04941476]
[1749232258821,6.6723,149.74,149.73,10.04941476]
[1749232259127,11.41018002,149.74,149.73,10.04941476]
[1749232259326,11.4059822,149.74,149.73,10.04941476]
[1749232259927,11.40596342,149.74,149.73,10.04941476]
[1749232260129,11.4060233,149.74,149.73,10.04941476]
[1749232261131,18.68039811,149.74,149.73,10.04941476]
[1749232262231,4.7337233,149.74,149.73,10.04941476]
[1749232262626,0.04243839,149.76,149.73,10.04941476]
[1749232262827,33.84,149.79,149.75,7.27437481]
[1749232263131,33.84,149.82,149.77,13.94527481]
[1749232263429,6.6694,149.81,149.77,13.94527481]
[1749232263830,6.6694,149.81,149.78,0.05119546]
[1749232264031,6.6699,149.8,149.78,0.05119546]
[1749232264219,33.84,149.82,149.78,0.05119546]
[1749232265131,6.6701,149.79,149.78,0.05119546]
[1749232265324,33.84,149.82,149.78,0.05119546]
[1749232265725,6.6697,149.8,149.78,0.05119546]
[1749232266238,33.84,149.82,149.78,0.05119546]
[1749232267030,40.509,149.82,149.78,6.72149546]
[1749232267330,33.84,149.82,149.78,0.05119546]
[1749232267929,6.6694,149.81,149.78,0.05119546]
[1749232268228,33.84,149.82,149.79,7.27437481]
[1749232268427,33.84,149.82,149.78,0.05119546]
[1749232268627,41.11437481,149.82,149.78,0.05119546]
[1749232268832,7.27437481,149.8,149.73,10.0]
[1749232269032,6.6723,149.74,149.73,10.0]
[1749232269236,6.6723,149.74,149.73,0.66785992]
[1749232270931,6.6723,149.74,149.73,5.992e-05]
[1749232271134,41.14334112,149.75,149.66,40.04187085]
[1749232271435,7.27437481,149.71,149.65,13.49624566]
[1749232271636,6.6742,149.7,149.65,13.49624566]
[1749232272229,0.04647658,149.69,149.66,6.72159264]
[1749232273132,6.72127658,149.69,149.66,0.04579264]
[1749232273336,0.04647658,149.69,149.66,0.04579264]
[1749232273537,6.675,149.68,149.66,10.04579264]
[1749232274741,11.32562825,149.68,149.66,10.04579264]
[1749232274928,4.65062825,149.68,149.66,10.04579264]
[1749232275128,4.65085963,149.68,149.66,10.04579264]
[1749232275329,4.65085962,149.68,149.66,10.04579264]
[1749232275535,11.32559319,149.68,149.66,10.04579264]
[1749232275835,6.675,149.68,149.66,10.04579264]
[1749232276040,11.32558382,149.68,149.66,10.04579264]
[1749232276236,6.675,149.68,149.66,10.04579264]
[1749232276539,11.32328351,149.68,149.66,10.04579264]
[1749232276736,6.675,149.68,149.66,10.04579264]
[1749232278334,6.6754,149.67,149.66,10.04579264]
[1749232279347,13.94977481,149.67,149.66,10.04579264]
[1749232280238,7.27437481,149.67,149.66,10.04579264]
[1749232281643,13.94977481,149.67,149.66,10.04579264]
[1749232282744,7.27437481,149.67,149.66,10.04579264]
[1749232282939,11.89691092,149.69,149.66,10.04579264]
[1749232283133,7.32085139,149.69,149.66,10.04579264]
[1749232283440,6.6754,149.67,149.66,10.04579264]
[1749232283937,13.94977481,149.67,149.66,10.04579264]
[1749232284331,47.78977481,149.67,149.66,10.04579264]
[1749232284541,52.36185356,149.67,149.66,10.04579264]
[1749232285839,52.35870353,149.67,149.66,6.55189264]
[1749232286039,52.35873066,149.67,149.66,6.55189264]
[1749232286239,47.78977481,149.67,149.66,6.55189264]
[1749232286641,52.35871742,149.67,149.66,6.55189264]
[1749232287237,52.35470413,149.67,149.66,6.55189264]
[1749232287646,47.78977481,149.67,149.66,6.55189264]
[1749232288940,33.84,149.67,149.66,6.55189264]
[1749232290145,40.5154,149.67,149.66,6.55189264]
[1749232290747,52.34508057,149.67,149.66,9.264e-05]
[1749232291050,6.6759,149.66,149.65,7.802e-05]
[1749232291349,11.82101921,149.66,149.58,44.7747]
[1749232291541,7.27437481,149.64,149.58,38.0955]
[1749232291742,7.27437481,149.64,149.59,6.6788]
[1749232291941,7.27437481,149.64,149.58,38.0955]
[1749232292141,0.04233933,149.62,149.6,6.72186217]
[1749232292443,0.04233933,149.62,149.6,0.04336217]
[1749232293142,0.04233933,149.62,149.6,10.04336217]
[1749232294249,6.6781,149.61,149.6,10.04336217]
[1749232294744,0.04233933,149.62,149.6,10.04336217]
[1749232295347,0.04233933,149.62,149.6,16.72166217]
[1749232295547,0.04233933,149.62,149.6,10.04336217]
[1749232295944,0.04233933,149.62,149.6,16.72186217]
[1749232296949,0.04233933,149.62,149.6,10.04336217]
[1749232297346,0.04233933,149.62,149.6,16.72186217]
[1749232298049,0.04233933,149.62,149.6,16.72176217]
[1749232301141,0.04233933,149.62,149.61,6.6781]
[1749232301346,0.04233933,149.62,149.61,8.9535]
[1749232304148,6.6763,149.66,149.63,6.677]
[1749232304552,6.6763,149.66,149.62,7.27437481]
[1749232305351,6.6763,149.66,149.63,0.04488406]
[1749232305352,0.04396927,149.65,149.63,0.04488406]
[1749232305555,0.04396927,149.65,149.63,6.72178406]
[1749232306056,40.5156,149.67,149.64,6.6768]
[1749232307053,40.5664327,149.67,149.64,6.6768]
[1749232307251,40.5664327,149.67,149.64,16.6768]
[1749232308157,40.5664327,149.67,149.65,6.6762]
[1749232308352,33.8908327,149.67,149.64,17.27437481]
[1749232308761,0.0508327,149.67,149.66,6.6759]
[1749232309653,0.0508327,149.67,149.65,6.6762]
[1749232310759,0.0508327,149.67,149.66,6.6759]
[1749232311159,33.84,149.7,149.66,7.27437481]
[1749232311559,33.84,149.7,149.65,7.27437481]
[1749232311955,40.5144,149.7,149.66,6.6756]
[1749232312156,0.04372092,149.69,149.67,0.04219645]
[1749232313262,6.675,149.68,149.67,0.04219645]
[1749232314860,6.71842092,149.69,149.67,0.04219645]
[1749232316060,6.675,149.68,149.67,0.04219645]
[1749232317167,11.25873429,149.68,149.67,0.04219645]
[1749232317557,18.5331091,149.68,149.67,0.04219645]
[1749232317757,6.6763,149.65,149.64,10.0]
[1749232317967,4.58246644,149.67,149.64,10.0]
[1749232318161,11.25856644,149.66,149.64,10.0]
[1749232318365,4.58699172,149.67,149.64,10.0]
[1749232318568,4.58699172,149.66,149.64,10.0]
[1749232318768,6.676,149.66,149.65,0.05038069]
[1749232318963,11.26298985,149.66,149.65,0.05038069]
[1749232319661,11.26295398,149.66,149.65,0.05038069]
[1749232320664,11.26372611,149.66,149.65,0.05038069]
[1749232321164,11.26356284,149.66,149.65,0.05038069]
[1749232321367,6.676,149.66,149.65,0.05038069]
[1749232321560,11.24730245,149.66,149.65,0.05038069]
[1749232321761,11.24194484,149.66,149.65,0.05038069]
[1749232321961,6.676,149.66,149.65,0.05038069]
[1749232322164,6.676,149.66,149.65,10.05038069]
[1749232322165,11.24183464,149.66,149.65,10.05038069]
[1749232322659,52.35620945,149.66,149.65,10.05038069]
[1749232322855,47.79037481,149.66,149.65,10.05038069]
[1749232323055,52.35434867,149.66,149.65,10.05038069]
[1749232323265,52.35246513,149.66,149.65,10.05038069]
[1749232323461,52.35271051,149.66,149.65,10.05038069]
[1749232324268,52.35314678,149.66,149.65,10.05038069]
[1749232324569,52.35253827,149.66,149.65,10.05038069]
[1749232324962,52.3521721,149.66,149.65,10.05038069]
[1749232325263,47.79037481,149.66,149.65,10.05038069]
[1749232325464,52.35202926,149.66,149.65,10.05038069]
[1749232326064,52.35202926,149.66,149.65,9.99940511]
[1749232326259,47.79037481,149.66,149.65,9.99940511]
[1749232326760,52.33554402,149.66,149.65,9.99940511]
[1749232326965,55.17867281,149.66,149.64,9.78e-05]
[1749232327265,4.54162319,149.65,149.57,53.47049641]
[1749232327456,52.92704962,149.66,149.57,19.63049641]
[1749232327457,7.27437481,149.63,149.57,19.63049641]
[1749232327661,33.84,149.62,149.57,12.95079641]
[1749232327858,33.84,149.62,149.55,6.22279641]
[1749232327859,7.27437481,149.61,149.55,6.22279641]
[1749232328059,7.32538527,149.59,149.57,0.04259872]
[1749232328264,6.6798,149.58,149.57,0.04259872]
[1749232329159,6.6798,149.58,149.57,10.04259872]
[1749232330263,14.00448527,149.59,149.57,10.04259872]
[1749232330570,7.32538527,149.59,149.57,10.04259872]
[1749232331558,6.6794,149.58,149.57,10.04259872]
[1749232336273,0.05101046,149.59,149.57,10.04259872]
[1749232336464,7.27437481,149.64,149.58,7.27437481]
[1749232336665,11.74068451,149.64,149.58,7.27437481]
[1749232336865,7.27437481,149.64,149.58,7.27437481]
[1749232337070,11.74069225,149.64,149.58,13.95357481]
[1749232337270,11.74167154,149.64,149.58,13.95357481]
[1749232337476,0.04233881,149.62,149.6,0.04827235]
[1749232337873,6.72023881,149.62,149.6,0.04827235]
[1749232338276,0.04233881,149.62,149.6,0.04827235]
[1749232338675,6.6781,149.61,149.6,0.04827235]
[1749232339072,0.04233881,149.62,149.6,0.04827235]
[1749232339776,0.04233881,149.62,149.6,10.04827235]
[1749232342178,0.04233881,149.62,149.6,16.72667235]
[1749232342682,0.04233881,149.62,149.6,10.04827235]
[1749232344078,6.72003881,149.62,149.6,10.04827235]
[1749232344982,0.04233881,149.62,149.6,10.04827235]
[1749232345182,33.84,149.65,149.61,7.27437481]
[1749232345485,33.84,149.65,149.6,10.04827235]
[1749232345678,6.6775,149.63,149.6,10.04827235]
[1749232345878,33.84,149.65,149.6,10.04827235]
[1749232346079,0.04823944,149.64,149.6,10.04827235]
[1749232346882,7.32261425,149.64,149.6,10.04827235]
[1749232347389,11.83877308,149.64,149.6,10.04827235]
[1749232347686,11.8387715,149.64,149.6,10.04827235]
[1749232347880,11.83877196,149.64,149.6,10.04827235]
[1749232348079,11.83877203,149.64,149.6,10.04827235]
[1749232348276,11.83867675,149.64,149.6,10.04827235]
[1749232348580,6.6779,149.62,149.6,10.04827235]
[1749232350388,6.6781,149.61,149.6,10.04827235]
[1749232351887,6.6778,149.62,149.6,10.04827235]
[1749232352088,9.47001425,149.64,149.6,10.04827235]
[1749232352290,13.98278197,149.64,149.6,10.04827235]
[1749232352985,6.6781,149.61,149.6,10.04827235]
[1749232355490,2.19563944,149.64,149.6,10.04827235]
[1749232355687,7.32261425,149.64,149.6,10.04827235]
[1749232355888,0.04823944,149.64,149.6,10.04827235]
[1749232356189,0.04823944,149.64,149.61,6.6778]
[1749232356578,0.04823944,149.64,149.6,16.72667235]
[1749232357186,6.72533944,149.64,149.6,16.72667235]
[1749232358489,6.6773,149.63,149.6,10.04827235]
[1749232359381,6.6773,149.63,149.6,16.72677235]
[1749232362593,6.6773,149.63,149.6,10.04827235]
[1749232363590,4.53180774,149.63,149.6,10.04827235]
[1749232363899,11.25746795,149.64,149.6,16.72657235]